[Event "29. Klatovy A 2023"]
[Site "Klatovy"]
[Date "2023.07.06"]
[Round "6.8"]
[White "Dvorak, Jan"]
[Black "Pycha, Patrik"]
[Result "1/2-1/2"]
[ECO "D58"]
[WhiteElo "2176"]
[BlackElo "2058"]
[PlyCount "52"]
[EventDate "2023.07.01"]
[EventType "swiss"]
[EventRounds "9"]
[EventCountry "CZE"]
[TimeControl "120+30"]

1. d4 {[%emt 0:00:06]} d5 {[%emt 0:00:04]} 2. c4 {[%emt 0:00:07]} e6 {[%emt 0:00:03]} 3. Nc3 {[%emt 0:00:08]} Nf6 {[%emt 0:00:04]} 4. Bg5 {[%emt 0:00:29]} Be7 {[%emt 0:00:05]} 5. e3 {[%emt 0:00:21]} h6 {[%emt 0:00:04]} 6. Bh4 {[%emt 0:00:55]} O-O {[%emt 0:00:07]} 7. Nf3 {[%emt 0:00:22]} b6 {[%emt 0:00:06]} 8. Rc1 {[%emt 0:02:13]} Bb7 {[%emt 0:00:16]} 9. Bxf6 {[%emt 0:00:06]} Bxf6 {[%emt 0:00:07]} 10. cxd5 {[%emt 0:00:03]} exd5 {[%emt 0:00:09]} 11. b4 {[%emt 0:02:39]} c6 {[%emt 0:02:17]} 12. Be2 {[%emt 0:05:11]} Nd7 {[%emt 0:00:00]} 13. O-O {[%emt 0:00:00]} Be7 {[%emt 0:02:15]} 14. Qb3 {[%emt 0:04:22]} Nf6 {[%emt 0:00:00]} 15. Rfd1 {[%emt 0:00:00]} Bd6 {[%emt 0:00:00]} 16. Ne5 {[%emt 0:00:00]} Qe7 {[%emt 0:00:00]} 17. Nd3 {[%emt 0:00:00]} Rfd8 {[%emt 0:00:00]} 18. Rb1 {[%emt 0:00:00]} Ne4 {[%emt 0:00:00]} 19. Bf1 {[%emt 0:00:00]} Rac8 {[%emt 0:00:00]} 20. g3 {[%emt 0:00:00]} h5 {[%emt 0:00:00]} 21. Bg2 {[%emt 0:00:00]} Ba6 {[%emt 0:00:00]} 22. a3 {[%emt 0:00:00]} h4 {[%emt 0:00:00]} 23. Qc2 {[%emt 0:00:00]} Nxc3 {[%emt 0:00:00]} 24. Qxc3 {[%emt 0:00:00]} Bb8 {[%emt 0:00:00]} 25. Re1 {[%emt 0:00:00]} hxg3 {[%emt 0:00:00]} 26. hxg3 {[%emt 0:00:00]} Qf6 {[%emt 0:00:00]} 1/2-1/2

[Event "29. Klatovy A 2023"]
[Site "Klatovy"]
[Date "2023.07.06"]
[Round "6.9"]
[White "Munk, Petr"]
[Black "Skypala, Ondrej"]
[Result "1-0"]
[ECO "A30"]
[WhiteElo "2096"]
[BlackElo "2163"]
[PlyCount "77"]
[EventDate "2023.07.01"]
[EventType "swiss"]
[EventRounds "9"]
[EventCountry "CZE"]
[TimeControl "120+30"]

1. c4 {[%emt 0:03:28]} Nf6 {[%emt 0:00:07]} 2. Nf3 {[%emt 0:01:49]} e6 {[%emt 0:01:56]} 3. b3 {[%emt 0:02:14]} b6 {[%emt 0:00:56]} 4. g3 {[%emt 0:00:04]} Bb7 {[%emt 0:00:09]} 5. Bg2 {[%emt 0:00:01]} c5 {[%emt 0:00:42]} 6. O-O {[%emt 0:00:44]} d6 {[%emt 0:00:11]} 7. d4 {[%emt 0:07:52]} Be7 {[%emt 0:01:43]} 8. Nc3 O-O 9. Qc2 cxd4 10. Nxd4 Bxg2 11. Kxg2 d5 12. Rd1 Qc8 13. cxd5 Bb4 14. Bb2 Bxc3 15. Qxc3 Qxc3 16. Bxc3 Nxd5 17. Bb2 Rd8 18. Rac1 h5 19. e4 Nb4 {[%emt 0:00:00]} 20. a3 {[%emt 0:00:00]} N4c6 {[%emt 0:00:00]} 21. Nxc6 {[%emt 0:00:00]} Nxc6 {[%emt 0:00:00]} 22. Rxd8+ {[%emt 0:00:00]} Nxd8 {[%emt 0:00:00]} 23. Rc7 {[%emt 0:00:00]} a6 {[%emt 0:00:00]} 24. Bd4 {[%emt 0:00:00]} Rb8 {[%emt 0:00:00]} 25. b4 {[%emt 0:00:00]} f6 {[%emt 0:00:00]} 26. f4 {[%emt 0:00:00]} b5 {[%emt 0:00:00]} 27. e5 {[%emt 0:00:00]} f5 {[%emt 0:00:00]} 28. Kf3 {[%emt 0:00:00]} Ra8 {[%emt 0:00:00]} 29. Bb6 {[%emt 0:00:00]} Rb8 {[%emt 0:00:00]} 30. Bc5 {[%emt 0:00:00]} Nb7 {[%emt 0:00:00]} 31. Ba7 {[%emt 0:00:00]} Rd8 {[%emt 0:00:00]} 32. Rxb7 {[%emt 0:00:00]} Rd3+ {[%emt 0:00:00]} 33. Kg2 {[%emt 0:00:00]} Rxa3 {[%emt 0:00:00]} 34. Bb6 {[%emt 0:00:00]} g5 {[%emt 0:00:00]} 35. fxg5 {[%emt 0:00:00]} Rb3 {[%emt 0:00:00]} 36. Bc5 {[%emt 0:00:00]} Re3 {[%emt 0:00:00]} 37. Ra7 {[%emt 0:00:00]} Ra3 {[%emt 0:00:00]} 38. Be7 {[%emt 0:00:00]} h4 {[%emt 0:00:00]} 39. Bf6 {[%emt 0:00:00]} 1-0

[Event "29. Klatovy A 2023"]
[Site "Klatovy"]
[Date "2023.07.06"]
[Round "6.10"]
[White "Zhang, Brian"]
[Black "Folk, Petr"]
[Result "0-1"]
[ECO "B48"]
[WhiteElo "1821"]
[BlackElo "2135"]
[PlyCount "58"]
[EventDate "2023.07.01"]
[EventType "swiss"]
[EventRounds "9"]
[EventCountry "CZE"]
[TimeControl "120+30"]

1. e4 {[%emt 0:00:05]} c5 {[%emt 0:00:05]} 2. Nf3 {[%emt 0:00:10]} e6 {[%emt 0:00:06]} 3. d4 {[%emt 0:00:12]} cxd4 {[%emt 0:00:05]} 4. Nxd4 {[%emt 0:00:07]} a6 {[%emt 0:00:07]} 5. Nc3 {[%emt 0:01:06]} Qc7 {[%emt 0:00:22]} 6. Bd3 {[%emt 0:07:28]} Nf6 {[%emt 0:02:12]} 7. Be3 {[%emt 0:02:15]} Nc6 {[%emt 0:02:46]} 8. Qe2 {[%emt 0:02:28]} Be7 {[%emt 0:04:16]} 9. O-O {[%emt 0:08:31]} O-O {[%emt 0:05:03]} 10. f4 {[%emt 0:10:34]} d6 {[%emt 0:02:01]} 11. Nb3 {[%emt 0:13:51]} b5 {[%emt 0:03:15]} 12. g4 {[%emt 0:08:40]} d5 {[%emt 0:13:55]} 13. exd5 {[%emt 0:10:49]} Nxd5 {[%emt 0:05:29]} 14. Nxd5 {[%emt 0:05:03]} exd5 {[%emt 0:01:15]} 15. c3 {[%emt 0:11:42]} Bd6 {[%emt 0:01:54]} 16. Qf3 {[%emt 0:05:16]} Re8 {[%emt 0:08:06]} 17. Nd4 {[%emt 0:08:52]} Bc5 {[%emt 0:10:18]} 18. Bf2 {[%emt 0:12:04]} Bb7 {[%emt 0:03:51]} 19. Rad1 {[%emt 0:08:28]} b4 {[%emt 0:04:15]} 20. Nxc6 {[%emt 0:03:12]} Qxc6 {[%emt 0:02:37]} 21. cxb4 {[%emt 0:01:33]} Bxf2+ {[%emt 0:01:10]} 22. Rxf2 {[%emt 0:01:56]} Qb6 {[%emt 0:00:30]} 23. Qh3 {[%emt 0:01:39]} g6 {[%emt 0:00:59]} 24. f5 {[%emt 0:05:56]} Re3 {[%emt 0:21:13]} 25. Qh4 {[%emt 0:00:34]} Rae8 {[%emt 0:02:03]} 26. Bf1 {[%emt 0:00:34]} d4 {[%emt 0:07:54]} 27. fxg6 {[%emt 0:00:29]} hxg6 {[%emt 0:01:08]} 28. Rd3 {[%emt 0:00:32]} Qc6 {[%emt 0:04:33]} 29. Rg2 {[%emt 0:00:32]} Rxd3 {[%emt 0:00:50]} 0-1

[Event "29. Klatovy A 2023"]
[Site "Klatovy"]
[Date "2023.07.06"]
[Round "6.11"]
[White "Mametev, Artem"]
[Black "Hladky, Tadeas"]
[Result "1/2-1/2"]
[ECO "C07"]
[WhiteElo "1991"]
[BlackElo "2046"]
[PlyCount "53"]
[EventDate "2023.07.01"]
[EventType "swiss"]
[EventRounds "9"]
[EventCountry "CZE"]
[TimeControl "120+30"]

1. e4 {[%emt 0:00:03]} e6 {[%emt 0:00:11]} 2. d4 {[%emt 0:00:06]} d5 {[%emt 0:00:04]} 3. Nd2 {[%emt 0:00:04]} c5 {[%emt 0:00:09]} 4. Ngf3 {[%emt 0:00:20]} cxd4 {[%emt 0:00:09]} 5. Nxd4 {[%emt 0:00:08]} Nf6 {[%emt 0:00:11]} 6. exd5 {[%emt 0:00:05]} Qxd5 {[%emt 0:01:08]} 7. Nb5 {[%emt 0:01:14]} Qd8 {[%emt 0:01:34]} 8. Nc4 {[%emt 0:00:57]} Nd5 {[%emt 0:05:27]} 9. Ne3 {[%emt 0:11:52]} a6 {[%emt 0:00:00]} 10. Nxd5 {[%emt 0:00:00]} exd5 {[%emt 0:00:00]} 11. Nd4 {[%emt 0:00:00]} Bd6 {[%emt 0:00:00]} 12. Bd3 {[%emt 0:00:00]} O-O {[%emt 0:00:00]} 13. O-O {[%emt 0:00:00]} Nc6 {[%emt 0:00:00]} 14. Nf5 {[%emt 0:00:00]} Bxf5 {[%emt 0:00:00]} 15. Bxf5 {[%emt 0:00:00]} Qf6 {[%emt 0:00:00]} 16. Bd3 {[%emt 0:00:00]} Rad8 {[%emt 0:00:00]} 17. Qh5 {[%emt 0:00:00]} h6 {[%emt 0:00:00]} 18. Qf5 {[%emt 0:00:00]} Qxf5 {[%emt 0:00:00]} 19. Bxf5 {[%emt 0:00:00]} Rfe8 {[%emt 0:00:00]} 20. Bd2 {[%emt 0:00:00]} Nd4 {[%emt 0:00:00]} 21. Bd3 {[%emt 0:00:00]} Ne2+ {[%emt 0:00:00]} 22. Bxe2 {[%emt 0:00:00]} Rxe2 {[%emt 0:00:00]} 23. Rad1 {[%emt 0:00:00]} Be5 {[%emt 0:00:00]} 24. c3 {[%emt 0:00:00]} d4 {[%emt 0:00:00]} 25. Rfe1 {[%emt 0:00:00]} Rxe1+ {[%emt 0:00:00]} 26. Bxe1 {[%emt 0:00:00]} Bf6 {[%emt 0:00:00]} 27. Kf1 {[%emt 0:00:00]} 1/2-1/2

[Event "29. Klatovy A 2023"]
[Site "Klatovy"]
[Date "2023.07.06"]
[Round "6.12"]
[White "Kopta, Pavel"]
[Black "Martirosyan, David"]
[Result "1/2-1/2"]
[ECO "D31"]
[WhiteElo "2209"]
[BlackElo "1908"]
[PlyCount "37"]
[EventDate "2023.07.01"]
[EventType "swiss"]
[EventRounds "9"]
[EventCountry "CZE"]
[TimeControl "120+30"]

1. d4 {[%emt 0:00:07]} d5 {[%emt 0:00:08]} 2. c4 {[%emt 0:00:13]} e6 {[%emt 0:00:07]} 3. Nc3 {[%emt 0:00:08]} a6 {[%emt 0:00:19]} 4. cxd5 {[%emt 0:01:05]} exd5 {[%emt 0:00:08]} 5. Qb3 {[%emt 0:01:46]} c6 {[%emt 0:01:14]} 6. Nf3 {[%emt 0:00:21]} Nf6 {[%emt 0:01:33]} 7. Bg5 {[%emt 0:01:20]} Be7 {[%emt 0:00:05]} 8. e3 {[%emt 0:00:28]} Nbd7 {[%emt 0:00:47]} 9. Bd3 {[%emt 0:07:19]} O-O {[%emt 0:00:00]} 10. O-O {[%emt 0:00:00]} Re8 {[%emt 0:00:25]} 11. Rac1 {[%emt 0:00:00]} Ne4 {[%emt 0:00:00]} 12. Bxe4 {[%emt 0:00:00]} Bxg5 {[%emt 0:00:00]} 13. Bf5 {[%emt 0:00:00]} Be7 {[%emt 0:00:00]} 14. Bxd7 {[%emt 0:00:00]} Qxd7 {[%emt 0:00:00]} 15. Na4 {[%emt 0:00:00]} Qg4 {[%emt 0:00:00]} 16. Nb6 {[%emt 0:00:00]} Rb8 {[%emt 0:00:00]} 17. Ne5 {[%emt 0:00:00]} Qf5 {[%emt 0:00:00]} 18. Nxc8 {[%emt 0:00:00]} Rexc8 {[%emt 0:00:00]} 19. Rfe1 {[%emt 0:00:00]} 1/2-1/2

[Event "29. Klatovy A 2023"]
[Site "Klatovy"]
[Date "2023.07.06"]
[Round "6.13"]
[White "Jordanov, Mihail"]
[Black "Polak, Michal 2002"]
[Result "1/2-1/2"]
[ECO "C65"]
[WhiteElo "2140"]
[BlackElo "1959"]
[PlyCount "84"]
[EventDate "2023.07.01"]
[EventType "swiss"]
[EventRounds "9"]
[EventCountry "CZE"]
[TimeControl "120+30"]

1. e4 {[%emt 18:27:16]} e5 {[%emt 0:00:06]} 2. Nf3 {[%emt 0:00:08]} Nc6 {[%emt 0:00:05]} 3. Bb5 {[%emt 0:00:06]} Nf6 {[%emt 0:00:11]} 4. Qe2 {[%emt 0:01:30]} Be7 {[%emt 0:06:49]} 5. O-O {[%emt 0:02:25]} d6 {[%emt 0:02:14]} 6. c3 {[%emt 0:03:29]} Bd7 {[%emt 0:00:21]} 7. Rd1 {[%emt 0:09:42]} O-O {[%emt 0:04:49]} 8. d4 {[%emt 0:03:08]} Qc8 {[%emt 0:08:09]} 9. Bg5 {[%emt 0:08:09]} Re8 {[%emt 0:07:42]} 10. dxe5 {[%emt 0:08:43]} Nxe5 {[%emt 0:07:36]} 11. Nxe5 {[%emt 0:01:39]} Bxb5 {[%emt 0:01:42]} 12. Qxb5 {[%emt 0:00:07]} dxe5 {[%emt 0:00:07]} 13. Bxf6 {[%emt 0:00:10]} Bxf6 {[%emt 0:00:14]} 14. Nd2 {[%emt 0:00:54]} c6 {[%emt 0:11:35]} 15. Qb3 {[%emt 0:03:27]} Be7 {[%emt 0:02:49]} 16. Nc4 {[%emt 0:07:55]} Qc7 {[%emt 0:11:01]} 17. Rd3 {[%emt 0:08:29]} Rad8 {[%emt 0:02:51]} 18. Rad1 {[%emt 0:04:51]} g6 {[%emt 0:08:28]} 19. g3 {[%emt 0:05:07]} Rxd3 {[%emt 0:06:19]} 20. Rxd3 {[%emt 0:00:49]} Rd8 {[%emt 0:00:36]} 21. Rxd8+ {[%emt 0:05:34]} Bxd8 {[%emt 0:00:06]} 22. Qd1 {[%emt 0:00:12]} Be7 {[%emt 0:02:07]} 23. Kg2 {[%emt 0:02:54]} Kg7 {[%emt 0:02:12]} 24. Qd3 {[%emt 0:02:07]} Bc5 {[%emt 0:01:08]} 25. b4 {[%emt 0:03:35]} Be7 {[%emt 0:00:30]} 26. a4 {[%emt 0:05:15]} h5 {[%emt 0:08:32]} 27. h4 {[%emt 0:07:04]} Kg8 {[%emt 0:02:35]} 28. Ne3 {[%emt 0:05:58]} a5 {[%emt 0:10:17]} 29. bxa5 {[%emt 0:10:45]} Qxa5 {[%emt 0:00:05]} 30. Qd7 {[%emt 0:00:06]} Bf8 {[%emt 0:01:02]} 31. Qxb7 {[%emt 0:00:23]} Qxa4 {[%emt 0:00:13]} 32. c4 {[%emt 0:00:55]} Bc5 {[%emt 0:06:44]} 33. Qb8+ {[%emt 0:01:07]} Kh7 {[%emt 0:00:10]} 34. Qe8 {[%emt 0:02:26]} Qa7 {[%emt 0:02:29]} 35. Nd1 {[%emt 0:02:12]} Qc7 {[%emt 0:01:17]} 36. Nc3 {[%emt 0:03:05]} Kg7 {[%emt 0:01:33]} 37. Ne2 {[%emt 0:01:20]} Qd6 {[%emt 0:03:31]} 38. Ng1 {[%emt 0:03:35]} Qd4 {[%emt 0:01:11]} 39. Nh3 {[%emt 0:00:11]} Qxe4+ {[%emt 0:00:31]} 40. Kg1 {[%emt 0:00:33]} Qe1+ {[%emt 0:01:58]} 41. Kg2 {[%emt 0:00:14]} Qe4+ {[%emt 0:00:34]} 42. Kg1 {[%emt 0:00:05]} Qe1+ 1/2-1/2

[Event "29. Klatovy A 2023"]
[Site "Klatovy"]
[Date "2023.07.06"]
[Round "6.14"]
[White "Holy, Filip"]
[Black "Zhang, Michelle 2013"]
[Result "0-1"]
[ECO "D42"]
[WhiteElo "2129"]
[BlackElo "1724"]
[PlyCount "126"]
[EventDate "2023.07.01"]
[EventType "swiss"]
[EventRounds "9"]
[EventCountry "CZE"]
[TimeControl "120+30"]

1. e4 {[%emt 0:00:00]} c6 {[%emt 0:00:20]} 2. d4 {[%emt 0:00:03]} d5 {[%emt 0:00:22]} 3. exd5 {[%emt 0:00:03]} cxd5 {[%emt 0:00:16]} 4. c4 {[%emt 0:00:04]} Nf6 {[%emt 0:00:45]} 5. Nc3 {[%emt 0:00:02]} e6 {[%emt 0:00:23]} 6. Nf3 {[%emt 0:00:03]} Be7 {[%emt 0:01:13]} 7. cxd5 {[%emt 0:00:00]} Nxd5 {[%emt 0:00:16]} 8. Bd3 {[%emt 0:00:14]} Nc6 {[%emt 0:00:52]} 9. O-O {[%emt 0:00:58]} O-O {[%emt 0:01:10]} 10. Re1 {[%emt 0:00:08]} Nf6 {[%emt 0:01:09]} 11. a3 {[%emt 0:00:46]} b6 {[%emt 0:01:35]} 12. Bc2 {[%emt 0:02:51]} Ba6 {[%emt 0:00:35]} 13. Bf4 {[%emt 0:04:51]} Rc8 14. Rc1 {[%emt 0:00:00]} Na5 15. Bb1 {[%emt 0:00:00]} Bc4 16. Qc2 {[%emt 0:00:00]} Bb3 17. Qd3 {[%emt 0:00:00]} Bc4 18. Qc2 {[%emt 0:00:00]} Bd5 19. Ng5 {[%emt 0:00:00]} g6 20. Nh3 {[%emt 0:00:00]} Bb3 21. Qd3 {[%emt 0:00:00]} Bc4 22. Qe3 {[%emt 0:00:00]} Bb3 23. Be5 {[%emt 0:00:00]} Ng4 24. Qg3 {[%emt 0:00:00]} Nxe5 25. dxe5 {[%emt 0:00:00]} Qd2 26. Nf4 {[%emt 0:00:00]} Rc4 27. Nce2 {[%emt 0:00:00]} Rxc1 28. Rxc1 {[%emt 0:00:00]} Rd8 29. h4 {[%emt 0:00:00]} Bd1 30. Rc7 {[%emt 0:00:00]} Bxe2 31. Rxe7 {[%emt 0:00:00]} Qe1+ 32. Kh2 {[%emt 0:00:00]} Qxb1 33. Nxe2 {[%emt 0:00:00]} Qf5 34. Qf4 {[%emt 0:00:00]} Nc6 35. Qxf5 {[%emt 0:00:00]} exf5 36. Rc7 {[%emt 0:00:00]} Nxe5 37. Kg3 {[%emt 0:00:00]} a5 38. Nf4 {[%emt 0:00:00]} Nd3 39. Rb7 {[%emt 0:00:00]} Nxb2 40. Rxb6 {[%emt 0:00:00]} Nc4 41. Rb3 {[%emt 0:00:00]} Nd2 42. Rd3 {[%emt 0:00:00]} Ne4+ 43. Kf3 {[%emt 0:00:00]} Rb8 44. Ne2 {[%emt 0:00:00]} a4 45. Ke3 {[%emt 0:00:00]} Nc5 46. Rc3 {[%emt 0:00:00]} Ne4 47. Rd3 {[%emt 0:00:00]} Re8 48. Kf3 {[%emt 0:00:00]} f6 49. Nc3 {[%emt 0:00:00]} Nxc3 50. Rxc3 {[%emt 0:00:00]} Re4 51. g3 {[%emt 0:00:00]} Kg7 52. Rc7+ {[%emt 0:00:00]} Kg8 53. Ra7 {[%emt 0:00:00]} Rc4 54. Kg2 {[%emt 0:00:00]} f4 55. gxf4 {[%emt 0:00:00]} Rxf4 56. Kg3 {[%emt 0:00:00]} Rc4 57. f3 {[%emt 0:00:00]} h5 58. Ra6 {[%emt 0:00:00]} Kg7 59. Ra7+ {[%emt 0:00:00]} Kh6 60. Kh3 {[%emt 0:00:00]} g5 61. hxg5+ {[%emt 0:00:00]} Kxg5 62. Ra6 {[%emt 0:00:00]} f5 63. Kg3 {[%emt 0:00:00]} h4+ 0-1

[Event "29. Klatovy A 2023"]
[Site "Klatovy"]
[Date "2023.07.06"]
[Round "6.15"]
[White "Honcharov, Makar"]
[Black "Ret, Adam Josef"]
[Result "0-1"]
[ECO "B33"]
[WhiteElo "1696"]
[BlackElo "2133"]
[PlyCount "132"]
[EventDate "2023.07.01"]
[EventType "swiss"]
[EventRounds "9"]
[EventCountry "CZE"]
[TimeControl "120+30"]

1. e4 {[%emt 24:04:32]} c5 {[%emt 0:00:00]} 2. Nf3 {[%emt 0:00:00]} Nc6 {[%emt 0:00:00]} 3. d4 {[%emt 0:00:00]} cxd4 {[%emt 0:00:00]} 4. Nxd4 {[%emt 0:00:00]} Nf6 {[%emt 0:00:00]} 5. Nc3 {[%emt 0:00:00]} e5 {[%emt 0:00:00]} 6. Ndb5 {[%emt 0:00:00]} d6 {[%emt 0:00:00]} 7. Bg5 {[%emt 0:00:00]} a6 {[%emt 0:00:00]} 8. Na3 {[%emt 0:00:00]} b5 {[%emt 0:00:00]} 9. Nd5 {[%emt 0:00:00]} Be7 {[%emt 0:00:00]} 10. Bxf6 {[%emt 0:00:00]} Bxf6 {[%emt 0:00:00]} 11. c4 {[%emt 0:00:00]} b4 {[%emt 0:00:00]} 12. Nc2 {[%emt 0:00:00]} a5 {[%emt 0:00:00]} 13. g3 {[%emt 0:00:00]} O-O {[%emt 0:00:00]} 14. Bg2 {[%emt 0:00:00]} Be6 {[%emt 0:00:00]} 15. b3 {[%emt 0:00:00]} Bg5 {[%emt 0:00:00]} 16. O-O {[%emt 0:00:00]} Qb8 {[%emt 0:00:00]} 17. Qd3 {[%emt 0:00:00]} Nd8 {[%emt 0:00:00]} 18. Rad1 {[%emt 0:00:00]} Nb7 {[%emt 0:00:00]} 19. f4 {[%emt 0:00:00]} Nc5 {[%emt 0:00:00]} 20. Qe2 {[%emt 0:00:00]} Bd8 {[%emt 0:00:00]} 21. Kh1 {[%emt 0:00:00]} f6 {[%emt 0:00:00]} 22. Rd2 {[%emt 0:00:00]} Bxd5 {[%emt 0:00:00]} 23. Rxd5 {[%emt 0:00:00]} a4 {[%emt 0:00:00]} 24. Rfd1 {[%emt 0:00:00]} Bc7 {[%emt 0:00:00]} 25. h4 {[%emt 0:00:00]} axb3 {[%emt 0:00:00]} 26. axb3 {[%emt 0:00:00]} Ra2 {[%emt 0:00:00]} 27. Bh3 {[%emt 0:00:00]} Nxb3 {[%emt 0:00:00]} 28. c5 {[%emt 0:00:00]} Na5 {[%emt 0:00:00]} 29. cxd6 {[%emt 0:00:00]} Bb6 {[%emt 0:00:00]} 30. Rb5 {[%emt 0:00:00]} Rb2 {[%emt 0:00:00]} 31. Rxb4 {[%emt 0:00:00]} Rxb4 {[%emt 0:00:00]} 32. Nxb4 {[%emt 0:00:00]} Kh8 {[%emt 0:00:00]} 33. Qb5 {[%emt 0:00:00]} Qb7 {[%emt 0:00:00]} 34. Nd5 {[%emt 0:00:00]} Bd8 {[%emt 0:00:00]} 35. Qc5 {[%emt 0:00:00]} Qb3 {[%emt 0:00:00]} 36. Ne3 {[%emt 0:00:00]} Bb6 {[%emt 0:00:00]} 37. Qd5 {[%emt 0:00:00]} Qxe3 {[%emt 0:00:00]} 38. Qd3 {[%emt 0:00:00]} Qxd3 {[%emt 0:00:00]} 39. Rxd3 {[%emt 0:00:00]} Nc6 {[%emt 0:00:00]} 40. d7 {[%emt 0:00:00]} Nd4 {[%emt 0:00:00]} 41. Kg2 {[%emt 0:00:00]} Kg8 {[%emt 0:00:00]} 42. Rc3 {[%emt 0:00:00]} Kf7 {[%emt 0:00:00]} 43. Rc8 {[%emt 0:00:00]} Ke7 {[%emt 0:00:00]} 44. Bg4 {[%emt 0:00:00]} Rd8 {[%emt 0:00:00]} 45. h5 {[%emt 0:00:00]} g6 {[%emt 0:00:00]} 46. fxe5 {[%emt 0:00:00]} fxe5 {[%emt 0:00:00]} 47. h6 {[%emt 0:00:00]} Kd6 {[%emt 0:00:00]} 48. Kh3 {[%emt 0:00:00]} Bc7 {[%emt 0:00:00]} 49. Kh4 {[%emt 0:00:00]} Nc6 {[%emt 0:00:00]} 50. Kg5 {[%emt 0:00:00]} Ba5 {[%emt 0:00:00]} 51. Kf6 {[%emt 0:00:00]} Nd4 {[%emt 0:00:00]} 52. Kg7 {[%emt 0:00:00]} Ne6+ {[%emt 0:00:00]} 53. Bxe6 {[%emt 0:00:00]} Kxe6 {[%emt 0:00:00]} 54. Rxd8 {[%emt 0:00:00]} Bxd8 {[%emt 0:00:00]} 55. Kxh7 {[%emt 0:00:00]} Kf7 {[%emt 0:00:00]} 56. g4 {[%emt 0:00:00]} Bf6 {[%emt 0:00:00]} 57. d8=Q {[%emt 0:00:00]} Bxd8 {[%emt 0:00:00]} 58. Kh8 {[%emt 0:00:00]} Be7 {[%emt 0:00:00]} 59. Kh7 {[%emt 0:00:00]} Bf6 {[%emt 0:00:00]} 60. g5 {[%emt 0:00:00]} Bxg5 {[%emt 0:00:00]} 61. Kh8 {[%emt 0:00:00]} Bxh6 {[%emt 0:00:00]} 62. Kh7 {[%emt 0:00:00]} g5 {[%emt 0:00:00]} 63. Kxh6 {[%emt 0:00:00]} g4 {[%emt 0:00:00]} 64. Kg5 {[%emt 0:00:00]} g3 {[%emt 0:00:00]} 65. Kf5 {[%emt 0:00:00]} g2 {[%emt 0:00:00]} 66. Kxe5 {[%emt 0:00:00]} g1=Q {[%emt 0:00:00]} 0-1

[Event "29. Klatovy A 2023"]
[Site "Klatovy"]
[Date "2023.07.06"]
[Round "6.16"]
[White "Pecka, Jan"]
[Black "Kroulik, Vaclav"]
[Result "1/2-1/2"]
[ECO "A13"]
[WhiteElo "2054"]
[BlackElo "1750"]
[PlyCount "94"]
[EventDate "2023.07.01"]
[EventType "swiss"]
[EventRounds "9"]
[EventCountry "CZE"]
[TimeControl "120+30"]

1. e3 {[%emt 23:51:31]} d5 {[%emt 0:00:00]} 2. c4 {[%emt 0:00:00]} e6 {[%emt 0:00:00]} 3. Nf3 {[%emt 0:00:00]} Nf6 {[%emt 0:00:00]} 4. b3 {[%emt 0:00:00]} b6 {[%emt 0:00:00]} 5. Bb2 {[%emt 0:00:00]} Bb7 {[%emt 0:00:00]} 6. Be2 {[%emt 0:00:00]} Bd6 {[%emt 0:00:00]} 7. O-O {[%emt 0:00:00]} O-O {[%emt 0:00:00]} 8. d3 {[%emt 0:00:00]} Nbd7 {[%emt 0:00:00]} 9. Nbd2 {[%emt 0:00:00]} Re8 {[%emt 0:00:00]} 10. Rc1 {[%emt 0:00:00]} Rc8 {[%emt 0:00:00]} 11. Qc2 {[%emt 0:00:00]} c5 {[%emt 0:00:00]} 12. Qb1 {[%emt 0:00:00]} Qe7 {[%emt 0:00:00]} 13. Rfe1 {[%emt 0:00:00]} Qf8 {[%emt 0:00:00]} 14. Qa1 {[%emt 0:00:00]} Bb8 {[%emt 0:00:00]} 15. Bf1 {[%emt 0:00:00]} a6 {[%emt 0:00:00]} 16. a3 {[%emt 0:00:00]} dxc4 {[%emt 0:00:00]} 17. Nxc4 {[%emt 0:00:00]} b5 {[%emt 0:00:00]} 18. Nce5 {[%emt 0:00:00]} Nxe5 {[%emt 0:00:00]} 19. Nxe5 {[%emt 0:00:00]} Red8 {[%emt 0:00:00]} 20. f4 {[%emt 0:00:00]} Nd5 {[%emt 0:00:00]} 21. Rc2 {[%emt 0:00:00]} f6 {[%emt 0:00:00]} 22. Ng4 {[%emt 0:00:00]} Ba7 {[%emt 0:00:00]} 23. Qc1 {[%emt 0:00:00]} h5 {[%emt 0:00:00]} 24. Nf2 {[%emt 0:00:00]} Qf7 {[%emt 0:00:00]} 25. e4 {[%emt 0:00:00]} Ne7 {[%emt 0:00:00]} 26. Be2 {[%emt 0:00:00]} Nc6 {[%emt 0:00:00]} 27. Qd1 {[%emt 0:00:00]} Nd4 {[%emt 0:00:00]} 28. Bxd4 {[%emt 0:00:00]} Rxd4 {[%emt 0:00:00]} 29. Bxh5 {[%emt 0:00:00]} g6 {[%emt 0:00:00]} 30. Bg4 {[%emt 0:00:00]} f5 {[%emt 0:00:00]} 31. Bf3 {[%emt 0:00:00]} c4 {[%emt 0:00:00]} 32. bxc4 {[%emt 0:00:00]} bxc4 {[%emt 0:00:00]} 33. Qc1 {[%emt 0:00:00]} Qd7 {[%emt 0:00:00]} 34. dxc4 {[%emt 0:00:00]} Bxe4 {[%emt 0:00:00]} 35. Bxe4 {[%emt 0:00:00]} Rxe4 {[%emt 0:00:00]} 36. Rxe4 {[%emt 0:00:00]} fxe4 {[%emt 0:00:00]} 37. c5 {[%emt 0:00:00]} Qd4 {[%emt 0:00:00]} 38. Rd2 {[%emt 0:00:00]} Qxc5 {[%emt 0:00:00]} 39. Qd1 {[%emt 0:00:00]} Qc1 {[%emt 0:00:00]} 40. Rd8+ {[%emt 0:00:00]} Kf7 {[%emt 0:00:00]} 41. Rd7+ {[%emt 0:00:00]} Ke8 {[%emt 0:00:00]} 42. Rxa7 {[%emt 0:00:00]} e3 {[%emt 0:00:00]} 43. Rd7 {[%emt 0:00:00]} exf2+ {[%emt 0:00:00]} 44. Kf1 {[%emt 0:00:00]} Qxf4 {[%emt 0:00:00]} 45. Rd4 {[%emt 0:00:00]} Qe5 {[%emt 0:00:00]} 46. Qa4+ {[%emt 0:00:00]} Qb5+ {[%emt 0:00:00]} 47. Kxf2 {[%emt 0:00:00]} Qxa4 {[%emt 0:00:00]} 1/2-1/2

[Event "29. Klatovy A 2023"]
[Site "Klatovy"]
[Date "2023.07.06"]
[Round "6.17"]
[White "Flajsman, Petr"]
[Black "Folkova, Martina"]
[Result "1/2-1/2"]
[ECO "D02"]
[WhiteElo "1956"]
[BlackElo "2049"]
[PlyCount "46"]
[EventDate "2023.07.01"]
[EventType "swiss"]
[EventRounds "9"]
[EventCountry "CZE"]
[TimeControl "120+30"]

1. d4 d5 {[%emt 0:00:00]} 2. Bf4 e6 {[%emt 0:00:00]} 3. e3 Bd6 {[%emt 0:00:00]} 4. Nf3 Bxf4 {[%emt 0:00:00]} 5. exf4 Qd6 {[%emt 0:00:00]} 6. Qd2 b6 {[%emt 0:00:00]} 7. Bb5+ c6 {[%emt 0:00:00]} 8. Bd3 a5 {[%emt 0:00:00]} 9. O-O Ba6 {[%emt 0:00:00]} 10. g3 Ne7 {[%emt 0:00:00]} 11. c3 Bxd3 {[%emt 0:00:00]} 12. Qxd3 Nd7 {[%emt 0:00:00]} 13. Ne5 O-O {[%emt 0:00:00]} 14. Nd2 Rfc8 {[%emt 0:00:00]} 15. Rfe1 Nf8 {[%emt 0:00:00]} 16. Re2 c5 {[%emt 0:00:00]} 17. Ndf3 c4 {[%emt 0:00:00]} 18. Qc2 f6 {[%emt 0:00:00]} 19. Ng4 b5 {[%emt 0:00:00]} 20. Rae1 b4 {[%emt 0:00:00]} 21. h4 Rcb8 {[%emt 0:00:00]} 22. h5 h6 {[%emt 0:00:00]} 23. Nh4 f5 {[%emt 0:00:00]} 1/2-1/2

[Event "29. Klatovy A 2023"]
[Site "Klatovy"]
[Date "2023.07.06"]
[Round "6.18"]
[White "Filindash, Nikita"]
[Black "Stary, Vojtech"]
[Result "0-1"]
[ECO "D85"]
[WhiteElo "2011"]
[BlackElo "1822"]
[PlyCount "76"]
[EventDate "2023.07.01"]
[EventType "swiss"]
[EventRounds "9"]
[EventCountry "CZE"]
[TimeControl "120+30"]

1. d4 Nf6 2. c4 g6 3. Nc3 d5 4. cxd5 Nxd5 5. e4 Nxc3 6. bxc3 Bg7 7. Nf3 c5 8. Be3 Qa5 9. Qd2 Nc6 10. Rc1 cxd4 11. cxd4 Qxd2+ 12. Kxd2 O-O 13. d5 Rd8 14. Kc2 Nb4+ 15. Kb3 Na6 16. Bxa6 bxa6 17. Bd4 Rb8+ 18. Ka3 Bf8 19. Bc5 Rb5 20. Rhd1 Ra5+ 21. Kb3 Rb5+ 22. Kc4 Rd7 23. a4 Rb2 24. Rc3 Rdb7 25. Rd2 Bg7 26. Rxb2 Rxb2 27. e5 Bd7 28. Rb3 Rc2+ 29. Rc3 Ra2 30. Bxa7 Rxa4+ 31. Kd3 Bb5+ 32. Ke3 Rc4 33. Rb3 Bh6+ 34. Kd3 Rc7+ 35. Kd4 Rxa7 36. d6 Rd7 37. Kc5 exd6+ 38. exd6 Bf8 0-1